{"text_format":"1","workbook":"xlsx","n_sheets":4,"sheets":["Catering","Delivery Location","Delivery Days","Delivery Times"],"not_rendered":{"charts":0,"images":0,"macros":1,"external_links":0,"defined_names":1,"comments":0,"pivot_tables":0},"unopened":[],"bounds":{"document_bytes":16777216,"sheet_cells":100000,"rows_first":2000,"rows_last":500,"rows_between":2000,"halvings":0,"cell_chars":16384,"cell_head_chars":4096},"cells_cut":0,"cells_raw":0,"read":"whole","date_system":"1900"}

{"sheet":"Catering","index":0,"n_rows":107,"n_cols":7,"rows_kept":107,"cut":false,"hidden":false,"merged":[[106,0,106,6],[10,0,10,6],[11,0,11,6],[39,1,39,2],[64,1,64,2],[53,1,53,2],[58,1,58,2],[60,1,60,2],[56,1,56,2],[104,5,104,6],[104,0,104,3],[89,1,89,2],[49,1,49,2],[51,1,51,2],[73,0,73,5],[102,0,102,3],[1,3,1,4],[102,5,102,6],[103,5,103,6],[62,1,62,2],[4,3,4,6],[3,3,3,6],[5,3,5,6],[6,3,6,6],[96,0,100,6],[8,4,8,6],[2,3,2,4]]}
["CONTACT AND LOCATION (REQUIRED)"]
["Delivery Location",null,null,null,null,"Room #"]
["Delivery Date (Weekdays only)",null,null,null,null,"Date"]
["Delivery Time (Between 6:45am – 2:00pm)"]
["Name"]
["Department"]
["Phone Number"]
["Invoice to billed to: (select one)",null,null,null,"If Other:"]
["Budget Code",null,null,null,-5758]
[]
["**One (1) week advanced notice required for all orders.**"]
["The appropriate serving utensils, cups, napkins, plates, flatware are included with each order."]
[]
["ITEM",null,null,"QUANTITY","COST","UNIT","SUBTOTAL"]
["BEVERAGES"]
["Coffee – Cups, milk, variety of sweeteners, and stir sticks included"]
["Regular (25 cup minimum)",null,null,null,1,"Each",{"$f":"IF(D17*E17=0,\"\",D17*E17)","v":""}]
["Decaf  (25 cup minimum)",null,null,null,1,"Each",{"$f":"IF(D18*E18=0,\"\",D18*E18)","v":""}]
["Bottled Water - Order by the case"]
["8oz - 48/case",null,null,null,15,"Case",{"$f":"IF(D20*E20=0,\"\",D20*E20)","v":""}]
["16.9 oz - 24/case",null,null,null,10,"Case",{"$f":"IF(D21*E21=0,\"\",D21*E21)","v":""}]
["Other"]
["Hot Tea (25 cup minimum)",null,null,null,0.6,"Each",{"$f":"IF(D23*E23=0,\"\",D23*E23)","v":""}]
["Lemonade (25 cup minimum)",null,null,null,0.6,"Each",{"$f":"IF(D24*E24=0,\"\",D24*E24)","v":""}]
["Orange Juice - Order by the gallon",null,null,null,7.5,"Gallon",{"$f":"IF(D25*E25=0,\"\",D25*E25)","v":""}]
["BREAKFAST"]
["Egg Puff Caserole - Serves approximately 36"]
["Plain",null,null,null,38,"Pan",{"$f":"IF(D28*E28=0,\"\",D28*E28)","v":""}]
["With Green Chiles",null,null,null,40,"Pan",{"$f":"IF(D29*E29=0,\"\",D29*E29)","v":""}]
["Coffee Cake - One pan serves approximately 30"]
["Plain",null,null,null,25,"Pan",{"$f":"IF(D31*E31=0,\"\",D31*E31)","v":""}]
["With Apples",null,null,null,28,"Pan",{"$f":"IF(D32*E32=0,\"\",D32*E32)","v":""}]
["With Peaches",null,null,null,28,"Pan",{"$f":"IF(D33*E33=0,\"\",D33*E33)","v":""}]
["Other"]
["Bagels, variety - Order by the dozen",null,null,null,18,"Dozen",{"$f":"IF(D35*E35=0,\"\",D35*E35)","v":""}]
["Cream Cheese Packets - sold individually",null,null,null,0.5,"Each",{"$f":"IF(D36*E36=0,\"\",D36*E36)","v":""}]
["Cinnamon Rolls - 2 Dozen minimum",null,null,null,24,"Dozen",""]
["Cinnabites",null,null,null,1,"Each",""]
["Pastry Variety Platter - Serves 12",null,null,null,15,"Platter",""]
[null,"(Includes Banana Bread, Strawberry Banana Muffins, Blueberry Muffins)"]
["Banana Bread – order by the dozen",null,null,null,18,"Dozen",""]
["Strawberry Banana Muffins – by the dozen",null,null,null,15,"Dozen",""]
["Blueberry Muffins – order by the dozen",null,null,null,15,"Dozen",""]
["Scones, Variety of flavors - by the dozen",null,null,null,20,"Dozen",""]
["Yogurt Parfait – minimum of 15",null,null,null,3,"Each",""]
["Hardboiled Eggs – sold individually",null,null,null,1,"Each",""]
["LUNCH"]
["Individual Salads"]
["BBQ Chicken",null,null,null,5,"Each",{"$f":"IF(D49*E49=0,\"\",D49*E49)","v":""}]
[null,"Romaine Lettuce, Diced Chicken, Diced Tomatoes, Sweet Corn, Black Beans, Cheddar Cheese, Turkey Bacon Bits, BBQ Sauce, Tortilla Chips"]
["Chef",null,null,null,5,"Each",{"$f":"IF(D51*E51=0,\"\",D51*E51)","v":""}]
[null,"Romaine Lettuce, Diced Turkey, Hardboiled Egg, Turkey Bacon Bits, Cheddar Cheese, Croutons, Ranch Dressing"]
["Chicken Caesar",null,null,null,5,"Each",{"$f":"IF(D53*E53=0,\"\",D53*E53)","v":""}]
[null,"Romaine Lettuce, Grilled Chicken Strips, Shredded Parmesan Cheese, Croutons, Caesar Dressing"]
["Wraps"]
["BLT Turkey",null,null,null,5,"Each",{"$f":"IF(D56*E56=0,\"\",D56*E56)","v":""}]
[null,"Whole Grain Tortilla, Romaine Lettuce, Diced Tomatoes, Diced Turkey, Turkey Bacon, Ranch Dressing"]
["BBQ Chicken",null,null,null,5,"Each",{"$f":"IF(D58*E58=0,\"\",D58*E58)","v":""}]
[null,"Whole Grain Tortilla, Romaine Lettuce, Diced Tomatoes, Diced Chicken, BBQ Sauce, Turkey Bacon Bits, Sweet Corn, Black Beans, Cheddar Cheese, BBQ Ranch Dressing"]
["Chicken Caesar",null,null,null,5,"Each",{"$f":"IF(D60*E60=0,\"\",D60*E60)","v":""}]
[null,"Whole Grain Tortilla, Romaine Lettuce, Grilled Chicken Strips, Shredded Parmesan Cheese, Caesar Dressing"]
["Chicken Fajita",null,null,null,5,"Each",{"$f":"IF(D62*E62=0,\"\",D62*E62)","v":""}]
[null,"Whole Grain Tortilla, Romaine Lettuce, Fajita Chicken Strips, Diced Tomatoes, Shredded Cheddar Cheese, Chipotle Ranch Dressing"]
["Vegetarian",null,null,null,5,"Each",{"$f":"IF(D64*E64=0,\"\",D64*E64)","v":""}]
[null,"Whole Grain Tortilla, Romaine Lettuce, Diced Tomatoes, Shredded Carrots, Sliced Cucumber, Sliced Bell Pepper, Shredded Cheese"]
["Pizza - Large, 8 slices per pizza"]
["Cheese",null,null,null,12.5,"Pizza",{"$f":"IF(D67*E67=0,\"\",D67*E67)","v":""}]
["Pepperoni",null,null,null,12.5,"Pizza",{"$f":"IF(D68*E68=0,\"\",D68*E68)","v":""}]
["Combo",null,null,null,12.5,"Pizza",{"$f":"IF(D69*E69=0,\"\",D69*E69)","v":""}]
["Sandwiches on a 6-inch wheat roll with lettuce and tomato.  Mayonnaise and mustard on the side."]
["Ham & Cheese",null,null,null,5,"Each",{"$f":"IF(D71*E71=0,\"\",D71*E71)","v":""}]
["Turkey & Cheese",null,null,null,5,"Each",{"$f":"IF(D72*E72=0,\"\",D72*E72)","v":""}]
["Vegetarian - Avocado, Cheese, Shredded Carrots",null,null,null,5,"Each",{"$f":"IF(D73*E73=0,\"\",D73*E73)","v":""}]
["SNACKS"]
["Cheese & Cracker Platter"]
["Small - serves 12",null,null,null,28,"Platter",{"$f":"IF(D76*E76=0,\"\",D76*E76)","v":""}]
["Large - serves 25",null,null,null,52.5,"Platter",{"$f":"IF(D77*E77=0,\"\",D77*E77)","v":""}]
["Fruit Platter"]
["Small - serves 12",null,null,null,35,"Platter",{"$f":"IF(D79*E79=0,\"\",D79*E79)","v":""}]
["Large - serves 25",null,null,null,65,"Platter",{"$f":"IF(D80*E80=0,\"\",D80*E80)","v":""}]
["Cookies - Order by the Dozen"]
["Chocolate Chip",null,null,null,9,"Dozen",{"$f":"IF(D82*E82=0,\"\",D82*E82)","v":""}]
["Sugar",null,null,null,9,"Dozen",{"$f":"IF(D83*E83=0,\"\",D83*E83)","v":""}]
["Oatmeal Raisin",null,null,null,9,"Dozen",{"$f":"IF(D84*E84=0,\"\",D84*E84)","v":""}]
["Chocolate Chip - 10 Dozen or more",null,null,null,7.8,"Dozen",""]
["Sugar - 10 Dozen or more",null,null,null,7.8,"Dozen",""]
["Oatmeal Rasin - 10 Dozen or more",null,null,null,7.8,"Dozen",""]
["Other"]
["Popsicles - 48/case, order by the case",null,null,null,19.5,"Case",""]
[null,"Nutrition Services freezer space is NOT guaranteed, please pre-arrange.",null,null,null,null,""]
["Sunchips – sold individually",null,null,null,1,"Each",""]
["Kettle Corn – sold individually",null,null,null,1,"Each",""]
["White Cheddar Popcorn – sold individually",null,null,null,1,"Each",""]
["Chewy Granola Bar – 8 per box, by the box",null,null,null,4,"Box",""]
["MISCELLANEOUS"]
[]
[]
[]
[]
[]
[]
[]
["**One week advanced notice required for all orders**",null,null,null,"Subtotal:",{"$f":"SUM(G16:G94)","v":0}]
[null,null,null,null,"Tax (7.75%):",{"$f":"SUM(F103*7.75%)","v":0}]
[null,null,null,null,"Total:",{"$f":"SUM(F103:G104)","v":0}]
[]
["If a special trip is required to deliver a catering order, a taxable \ndelivery surcharge of $20 will be added to your final invoice."]

{"sheet":"Delivery Location","index":1,"n_rows":43,"n_cols":1,"rows_kept":43,"cut":false,"hidden":true,"merged":[]}
["Location"]
["Alderwood Elementary "]
["Beacon Park School "]
["Bonita Canyon Elementary"]
["Brywood Elementary "]
["Canyon View Elementary"]
["College Park Elementary"]
["Creekside High School "]
["Creekside Learning Center"]
["Culverdale Elementary"]
["Cypress Village Elementary"]
["Deerfield Elementary"]
["District Office"]
["Eastshore Elementary "]
["Eastwood School"]
["Greentree Elementary"]
["Irvine Home School"]
["Jeffrey Trail Middle School"]
["Lakeside Middle School"]
["lrvine High School "]
["Maintenance & Operations"]
["Meadow Park Elementary"]
["Northwood Elementary"]
["Northwood High School "]
["Oak Creek Elementary"]
["Plaza Vista School "]
["Portola High School "]
["Portola Springs Elementary "]
["Rancho San Joaquin Middle School"]
["Santiago Hills Elementary "]
["Sierra Vista Middle School "]
["South Lake Middle School "]
["Springbrook Elementary "]
["Stone Creek Elementary "]
["Stonegate Elementary "]
["Turtle Rock Elementary "]
["University High School "]
["University Park Elementary "]
["Venado Middle School "]
["Vista Verde School "]
["Westpark Elementary "]
["Woodbridge High School "]
["Woodbury Elementary"]

{"sheet":"Delivery Days","index":2,"n_rows":5,"n_cols":1,"rows_kept":5,"cut":false,"hidden":true,"merged":[]}
["Monday"]
["Tuesday"]
["Wednesday"]
["Thursday"]
["Friday"]

{"sheet":"Delivery Times","index":3,"n_rows":30,"n_cols":1,"rows_kept":30,"cut":false,"hidden":true,"merged":[]}
["06:45:00"]
["07:00:00"]
["07:15:00"]
["07:30:00"]
["07:45:00"]
["08:00:00"]
["08:15:00"]
["08:30:00"]
["08:45:00"]
["09:00:00"]
["09:15:00"]
["09:30:00"]
["09:45:00"]
["10:00:00"]
["10:15:00"]
["10:30:00"]
["10:45:00"]
["11:00:00"]
["11:15:00"]
["11:30:00"]
["11:45:00"]
["12:00:00"]
["12:15:00"]
["12:30:00"]
["12:45:00"]
["13:00:00"]
["13:15:00"]
["13:30:00"]
["13:45:00"]
["14:00:00"]